fUST/lending_fUST_20250830
["ID","MTS","AMOUNT","RATE_DAILY","PERIOD"]
[382289631,1756565463847,-151.0,0.00019178,2]
[382289632,1756565463857,-534.37,0.00019178,2]
[382289633,1756565463866,-2127.520605,0.00019178,2]
[382289634,1756565463876,-151.0,0.00019178,2]
[382289635,1756565463885,-2127.520605,0.00019178,2]
[382289636,1756565463895,-427.60168039,0.00019178,2]
[382289637,1756565463906,-1129.28,0.00019178,2]
[382289638,1756565463916,-480.0,0.00019178,2]
[382289639,1756565463926,-2127.520605,0.00019178,2]
[382289640,1756565463936,-2127.520605,0.00019178,2]
[382289641,1756565463946,-2127.520607,0.00019178,2]
[382289642,1756565463956,-480.0,0.00019178,2]
[382289643,1756565463965,-480.0,0.00019178,2]
[382289644,1756565463975,-480.32973194,0.00019178,2]
[382289645,1756565463986,-480.0,0.00019178,2]
[382289646,1756565463996,-289.850122,0.00019178,2]
[382289647,1756565464006,-289.850122,0.00019178,2]
[382289648,1756565464016,-976.3,0.00019178,2]
[382289649,1756565464026,-289.850122,0.00019178,2]
[382289650,1756565464036,-289.850122,0.00019178,2]
[382289651,1756565464047,-289.850122,0.00019178,2]
[382289652,1756565464057,-289.850122,0.00019178,2]
[382289653,1756565464067,-289.850122,0.00019178,2]
[382289654,1756565464077,-289.850122,0.00019178,2]
[382289655,1756565464089,-289.850122,0.00019178,2]
[382289656,1756565464099,-289.850122,0.00019178,2]
[382289657,1756565464110,-480.0,0.00019178,2]
[382289658,1756565464121,-1482.66,0.00019178,2]
[382289659,1756565464131,-289.850122,0.00019178,2]
[382289660,1756565464142,-480.0,0.00019178,2]
[382289661,1756565464155,-289.850124,0.00019178,2]
[382289662,1756565464164,-394.644994,0.00019178,2]
[382289663,1756565464174,-480.0,0.00019178,2]
[382289664,1756565464185,-394.644994,0.00019178,2]
[382289665,1756565464195,-394.644994,0.00019178,2]
[382289666,1756565464205,-313.045863,0.00019178,2]
[382289667,1756565464215,-394.644994,0.00019178,2]
[382289668,1756565464224,-480.0,0.00019178,2]
[382289669,1756565464234,-1175.6,0.00019178,2]
[382289670,1756565464243,-313.045863,0.00019178,2]
[382289671,1756565464254,-394.644994,0.00019178,2]
[382289672,1756565464264,-313.045863,0.00019178,2]
[382289673,1756565464274,-394.644994,0.00019178,2]
[382289674,1756565464284,-557.631418,0.00019178,2]
[382289675,1756565464293,-557.631418,0.00019178,2]
[382289676,1756565464303,-151.0,0.00019178,2]
[382289677,1756565464312,-557.631418,0.00019178,2]
[382289678,1756565464322,-151.0,0.00019178,2]
[382289679,1756565464332,-394.644994,0.00019178,2]
[382289680,1756565464342,-313.045863,0.00019178,2]
[382289681,1756565464351,-151.0,0.00019178,2]
[382289682,1756565464361,-394.644994,0.00019178,2]
[382289683,1756565464371,-313.045863,0.00019178,2]
[382289684,1756565464381,-394.644994,0.00019178,2]
[382289685,1756565464391,-557.631418,0.00019178,2]
[382289686,1756565464401,-313.045863,0.00019178,2]
[382289687,1756565464410,-557.631418,0.00019178,2]
[382289688,1756565464420,-151.0,0.00019178,2]
[382289689,1756565464431,-557.631418,0.00019178,2]
[382289690,1756565464440,-394.644994,0.00019178,2]
[382289691,1756565464451,-313.045863,0.00019178,2]
[382289692,1756565464460,-151.0,0.00019178,2]
[382289693,1756565464470,-394.644994,0.00019178,2]
[382289694,1756565464479,-313.045863,0.00019178,2]
[382289695,1756565464489,-394.645,0.00019178,2]
[382289696,1756565464499,-557.631418,0.00019178,2]
[382289697,1756565464509,-151.0,0.00019178,2]
[382289698,1756565464518,-313.045863,0.00019178,2]
[382289699,1756565464528,-557.631418,0.00019178,2]
[382289700,1756565464538,-557.631418,0.00019178,2]
[382289701,1756565464547,-151.0,0.00019178,2]
[382289702,1756565464558,-151.0,0.00019178,2]
[382289703,1756565464573,-313.045863,0.00019178,2]
[382289704,1756565464583,-151.0,0.00019178,2]
[382289705,1756565464593,-151.0,0.00019178,2]
[382289706,1756565464603,-151.0,0.00019178,2]
[382289707,1756565464615,-151.0,0.00019178,2]
[382289708,1756565464624,-557.631418,0.00019178,2]
[382289709,1756565464634,-480.0,0.00019178,2]
[382289710,1756565464645,-313.045863,0.00019178,2]
[382289711,1756565464655,-557.631418,0.00019178,2]
[382289712,1756565464667,-313.045863,0.00019178,2]
[382289713,1756565464676,-557.631428,0.00019178,2]
[382289714,1756565464686,-151.0,0.00019178,2]
[382289715,1756565464696,-153.069633,0.00019178,2]
[382289716,1756565464706,-151.0,0.00019178,2]
[382289717,1756565464716,-153.069633,0.00019178,2]
[382289718,1756565464727,-153.069633,0.00019178,2]
[382289719,1756565464736,-151.0,0.00019178,2]
[382289720,1756565464746,-624.02,0.00019178,2]
[382289721,1756565464756,-153.069633,0.00019178,2]
[382289722,1756565464765,-151.0,0.00019178,2]
[382289723,1756565464775,-153.069633,0.00019178,2]
[382289724,1756565464784,-480.0,0.00019178,2]
[382289725,1756565464794,-151.0,0.00019178,2]
[382289726,1756565464804,-153.069633,0.00019178,2]
[382289727,1756565464813,-503.09,0.00019178,2]
[382289728,1756565464823,-151.0,0.00019178,2]
[382289729,1756565464832,-480.0,0.00019178,2]
[382289730,1756565464842,-544.35,0.00019178,2]
[382289731,1756565464852,-153.069633,0.00019178,2]
[382289732,1756565464862,-151.0,0.00019178,2]
[382289733,1756565464871,-153.069633,0.00019178,2]
[382289734,1756565464882,-480.0,0.00019178,2]
[382289735,1756565464894,-153.069633,0.00019178,2]
[382289736,1756565464904,-170.40887,0.00019178,2]
[382289737,1756565464914,-480.0,0.00019178,2]
[382289738,1756565464924,-153.069633,0.00019178,2]
[382289739,1756565464943,-153.069633,0.00019178,2]
[382289740,1756565464954,-153.069625,0.00019178,2]
[382289741,1756565464964,-480.0,0.00019178,2]
[382289742,1756565464975,-570.0,0.00019178,2]
[382289743,1756565464985,-488.7,0.00019178,2]
[382289744,1756565464995,-195.192931,0.00019178,2]
[382289745,1756565465005,-195.192931,0.00019178,2]
[382289746,1756565465015,-195.192931,0.00019178,2]
[382289747,1756565465025,-424.153,0.00019178,2]
[382289748,1756565465035,-195.192931,0.00019178,2]
[382289749,1756565465045,-464.0788527,0.00019178,2]
[382289750,1756565465055,-424.153,0.00019178,2]
[382289751,1756565465065,-195.192931,0.00019178,2]
[382289752,1756565465075,-424.153,0.00019178,2]
[382289753,1756565465086,-480.0,0.00019178,2]
[382289754,1756565465096,-195.192931,0.00019178,2]
[382289755,1756565465107,-424.153,0.00019178,2]
[382289756,1756565465118,-195.192931,0.00019178,2]
[382289757,1756565465127,-424.153,0.00019178,2]
[382289758,1756565465138,-195.192931,0.00019178,2]
[382289759,1756565465147,-480.0,0.00019178,2]
[382289760,1756565465157,-195.192931,0.00019178,2]
[382289761,1756565465167,-424.153,0.00019178,2]
[382289762,1756565465177,-195.192931,0.00019178,2]
[382289763,1756565465187,-424.153,0.00019178,2]
[382289764,1756565465197,-195.192931,0.00019178,2]
[382289765,1756565465211,-424.153,0.00019178,2]
[382289766,1756565465229,-480.0,0.00019178,2]
[382289767,1756565465243,-195.192935,0.00019178,2]
[382289768,1756565465253,-424.153,0.00019178,2]
[382289769,1756565465262,-424.153,0.00019178,2]
[382289770,1756565465272,-424.153,0.00019178,2]
[382289771,1756565465282,-480.0,0.00019178,2]
[382289772,1756565465292,-599.68,0.00019178,2]
[382289773,1756565465302,-424.153005,0.00019178,2]
[382289774,1756565465312,-480.0,0.00019178,2]
[382289775,1756565465322,-480.0,0.00019178,2]
[382289776,1756565465332,-592.32,0.00019178,2]
[382289777,1756565465342,-1866.82,0.00019178,2]
[382289778,1756565465355,-480.8791013,0.00019178,2]
[382289779,1756565465366,-500.85,0.00019178,2]
[382289780,1756565465375,-480.0,0.00019178,2]
[382289781,1756565465386,-480.0,0.00019178,2]
[382289782,1756565465395,-480.0,0.00019178,2]
[382289783,1756565465404,-1654.35,0.00019178,2]
[382289784,1756565465414,-1411.38,0.00019178,2]
[382289785,1756565465424,-188.708631,0.00019178,2]
[382289786,1756565465433,-188.708631,0.00019178,2]
[382289787,1756565465443,-188.708631,0.00019178,2]
[382289788,1756565465452,-188.708631,0.00019178,2]
[382289789,1756565465461,-188.708631,0.00019178,2]
[382289790,1756565465471,-480.0,0.00019178,2]
[382289791,1756565465481,-4139.38,0.00019178,2]
[382289792,1756565465491,-188.708631,0.00019178,2]
[382289793,1756565465501,-188.708631,0.00019178,2]
[382289794,1756565465510,-480.0,0.00019178,2]
[382289795,1756565465520,-188.708631,0.00019178,2]
[382289796,1756565465530,-480.0,0.00019178,2]
[382289797,1756565465540,-188.708631,0.00019178,2]
[382289798,1756565465696,-482.25125208,0.00019178,2]
[382289799,1756565465706,-264.87345,0.00019178,2]
[382289800,1756565465716,-264.87345,0.00019178,2]
[382289801,1756565465725,-264.87345,0.00019178,2]
[382289802,1756565465734,-504.91351985,0.00019178,2]
[382289803,1756565465744,-619.64,0.00019178,2]
[382289804,1756565465753,-1552.55,0.00019178,2]
[382289805,1756565465762,-264.87345,0.00019178,2]
[382289806,1756565465772,-480.0,0.00019178,2]
[382289807,1756565465783,-264.87345,0.00019178,2]
[382289808,1756565465792,-264.87345,0.00019178,2]
[382289809,1756565465802,-264.87345,0.00019178,2]
[382289810,1756565465812,-264.87345,0.00019178,2]
[382289811,1756565465822,-264.87345,0.00019178,2]
[382289812,1756565465831,-480.0,0.00019178,2]
[382289813,1756565465841,-480.0,0.00019178,2]
[382289814,1756565465852,-480.0,0.00019178,2]
[382289815,1756565465861,-720.63,0.00019178,2]
[382289816,1756565465871,-264.87345,0.00019178,2]
[382289817,1756565465880,-264.87345,0.00019178,2]
[382289818,1756565465890,-264.87346,0.00019178,2]
[382289819,1756565465899,-480.0,0.00019178,2]
[382289820,1756565465909,-480.0,0.00019178,2]
[382289821,1756565465919,-188.708631,0.00019178,2]
[382289822,1756565465928,-188.708631,0.00019178,2]
[382289823,1756565465938,-188.708639,0.00019178,2]
[382289824,1756565465947,-480.0,0.00019178,2]
[382289825,1756565465956,-480.0,0.00019178,2]
[382289826,1756565465965,-480.0,0.00019178,2]
[382289827,1756565465975,-480.0,0.00019178,2]
[382289828,1756565465984,-1653.98,0.00019178,2]
[382289829,1756565465994,-480.0,0.00019178,2]
[382289830,1756565466004,-514.09926533,0.00019178,2]
[382289831,1756565466014,-1533.99,0.00019178,2]
[382289832,1756565466024,-880.33,0.00019178,2]
[382289833,1756565466034,-359.79543373,0.00019178,2]
[382289834,1756565466043,-480.0,0.00019178,2]
[382289835,1756565466052,-480.0,0.00019178,2]
[382289836,1756565466062,-568.0,0.00019178,2]
[382289837,1756565466071,-480.0,0.00019178,2]
[382289838,1756565466081,-480.0,0.00019178,2]
[382289839,1756565466091,-238.01906589,0.00019178,2]
[382289840,1756565466100,-758.58,0.00019178,2]
[382289841,1756565466110,-1098.0,0.00019178,2]
[382289842,1756565466120,-480.0,0.00019178,2]
[382289843,1756565466129,-816.79,0.00019178,2]
[382289844,1756565466139,-736.58,0.00019178,2]
[382289845,1756565466148,-1915.26,0.00019178,2]
[382289846,1756565466158,-650.375166,0.00019178,2]
[382289847,1756565466168,-650.375166,0.00019178,2]
[382289848,1756565466178,-650.375166,0.00019178,2]
[382289849,1756565466188,-480.0,0.00019178,2]
[382289850,1756565466198,-480.0,0.00019178,2]
[382289851,1756565466208,-650.375166,0.00019178,2]
[382289852,1756565466218,-480.0,0.00019178,2]
[382289853,1756565466228,-820.12,0.00019178,2]
[382289854,1756565466238,-650.375166,0.00019178,2]
[382289855,1756565466248,-480.0,0.00019178,2]
[382289856,1756565466258,-650.375166,0.00019178,2]
[382289857,1756565466267,-640.24,0.00019178,2]
[382289858,1756565466278,-650.375166,0.00019178,2]
[382289859,1756565466287,-650.375166,0.00019178,2]
[382289860,1756565466297,-650.375166,0.00019178,2]
[382289861,1756565466307,-896.15,0.00019178,2]
[382289862,1756565466316,-480.0,0.00019178,2]
[382289863,1756565466326,-480.0,0.00019178,2]
[382289864,1756565466336,-480.0,0.00019178,2]
[382289865,1756565466346,-650.375166,0.00019178,2]
[382289866,1756565466355,-480.0,0.00019178,2]
[382289867,1756565466365,-600.25,0.00019178,2]
[382289868,1756565466374,-650.375166,0.00019178,2]
[382289869,1756565466384,-650.375156,0.00019178,2]
[382289870,1756565466394,-151.0,0.00019178,2]
[382289871,1756565466404,-486.69671766,0.00019178,2]
[382289872,1756565466414,-778.49,0.00019178,2]
[382289873,1756565466423,-151.0,0.00019178,2]
[382289874,1756565466432,-151.0,0.00019178,2]
[382289875,1756565466442,-151.0,0.00019178,2]
[382289876,1756565466451,-151.0,0.00019178,2]
[382289877,1756565466461,-480.0,0.00019178,2]
[382289878,1756565466470,-151.0,0.00019178,2]
[382289879,1756565466479,-480.0,0.00019178,2]
[382289880,1756565466488,-480.0,0.00019178,2]
[382289881,1756565466497,-842.38,0.00019178,2]
[382289882,1756565466506,-151.0,0.00019178,2]
[382289883,1756565466516,-151.0,0.00019178,2]
[382289884,1756565466526,-151.0,0.00019178,2]
[382289885,1756565466535,-365.18445844,0.00019178,2]
[382289886,1756565466545,-480.0,0.00019178,2]
[382289887,1756565466555,-1465.85,0.00019178,2]
[382289888,1756565466568,-480.0,0.00019178,2]
[382289889,1756565466578,-498.9,0.00019178,2]
[382289890,1756565466588,-480.0,0.00019178,2]
[382289891,1756565466598,-498.9,0.00019178,2]
[382289892,1756565466609,-755.67,0.00019178,2]
[382289893,1756565466619,-498.9,0.00019178,2]
[382289894,1756565466628,-1492.88,0.00019178,2]
[382289895,1756565466639,-1377.8,0.00019178,2]
[382289896,1756565466648,-498.9,0.00019178,2]
[382289897,1756565466658,-480.0,0.00019178,2]
[382289898,1756565466667,-498.9,0.00019178,2]
[382289899,1756565466677,-498.9,0.00019178,2]
[382289900,1756565466687,-480.0,0.00019178,2]
[382289901,1756565466696,-724.89,0.00019178,2]
[382289902,1756565466707,-480.0,0.00019178,2]
[382289903,1756565466718,-480.0,0.00019178,2]
[382289904,1756565466729,-498.9,0.00019178,2]
[382289905,1756565466740,-498.9,0.00019178,2]
[382289906,1756565466750,-480.0,0.00019178,2]
[382289907,1756565466759,-498.9,0.00019178,2]
[382289908,1756565466770,-480.0,0.00019178,2]
[382289909,1756565466779,-498.9,0.00019178,2]
[382289910,1756565466789,-498.9,0.00019178,2]
[382289911,1756565466799,-498.9,0.00019178,2]
[382289912,1756565466809,-480.0,0.00019178,2]
[382289913,1756565466819,-1697.41,0.00019178,2]
[382289914,1756565466828,-1083.38,0.00019178,2]
[382289915,1756565466837,-480.0,0.00019178,2]
[382289916,1756565466846,-480.0,0.00019178,2]
[382289917,1756565466856,-480.0,0.00019178,2]
[382289918,1756565466866,-480.0,0.00019178,2]
[382289919,1756565466875,-480.0,0.00019178,2]
[382289920,1756565466885,-960.51,0.00019178,2]
[382289921,1756565466896,-480.0,0.00019178,2]
[382289922,1756565466906,-480.0,0.00019178,2]
[382289923,1756565466916,-1998.89,0.00019178,2]
[382289924,1756565466926,-940.92,0.00019178,2]
[382289925,1756565466936,-652.06,0.00019178,2]
[382289926,1756565466945,-480.0,0.00019178,2]
[382289927,1756565466955,-601.9,0.00019178,2]
[382289928,1756565466964,-1363.97,0.00019178,2]
[382289929,1756565466974,-480.0,0.00019178,2]
[382289930,1756565466984,-1936.24,0.00019178,2]
[382289931,1756565466994,-480.0,0.00019178,2]
[382289932,1756565467003,-480.0,0.00019178,2]
[382289933,1756565467013,-480.0,0.00019178,2]
[382289934,1756565467023,-699.94,0.00019178,2]
[382289935,1756565467033,-461.89746466,0.00019178,2]
[382289936,1756565467042,-587.85,0.00019178,2]
[382289937,1756565467052,-1573.95,0.00019178,2]
[382289938,1756565467062,-480.0,0.00019178,2]
[382289939,1756565467072,-480.0,0.00019178,2]
[382289940,1756565467082,-668.9,0.00019178,2]
[382289941,1756565467092,-480.0,0.00019178,2]
[382289942,1756565467101,-683.48,0.00019178,2]
[382289943,1756565467111,-151.0,0.00019178,2]
[382289944,1756565467121,-151.0,0.00019178,2]
[382289945,1756565467131,-151.0,0.00019178,2]
[382289946,1756565467143,-1295.57,0.00019178,2]
[382289947,1756565467152,-480.0,0.00019178,2]
[382289948,1756565467162,-188.59302,0.00019178,2]
[382289949,1756565467172,-480.0,0.00019178,2]
[382289950,1756565467182,-188.59302,0.00019178,2]
[382289951,1756565467192,-151.0,0.00019178,2]
[382289952,1756565467202,-481.40554582,0.00019178,2]
[382289953,1756565467213,-188.59302,0.00019178,2]
[382289954,1756565467223,-151.0,0.00019178,2]
[382289955,1756565467233,-711.084998,0.00019178,2]
[382289956,1756565467243,-151.0,0.00019178,2]
[382289957,1756565467254,-711.084998,0.00019178,2]
[382289958,1756565467264,-711.084998,0.00019178,2]
[382289959,1756565467274,-188.59302,0.00019178,2]
[382289960,1756565467284,-188.59302,0.00019178,2]
[382289961,1756565467294,-188.59302,0.00019178,2]
[382289962,1756565467303,-711.084998,0.00019178,2]
[382289963,1756565467314,-151.0,0.00019178,2]
[382289964,1756565467323,-480.0,0.00019178,2]
[382289965,1756565467333,-480.0,0.00019178,2]
[382289966,1756565467343,-711.084998,0.00019178,2]
[382289967,1756565467353,-273.760266,0.00019178,2]
[382289968,1756565467363,-188.59302,0.00019178,2]
[382289969,1756565467373,-711.084998,0.00019178,2]
[382289970,1756565467383,-188.59302,0.00019178,2]
[382289971,1756565467395,-480.0,0.00019178,2]
[382289972,1756565467405,-188.59302,0.00019178,2]
[382289973,1756565467414,-711.084998,0.00019178,2]
[382289974,1756565467424,-188.59302,0.00019178,2]
[382289975,1756565467437,-415.23021839,0.00019178,2]
[382289976,1756565467447,-188.59302,0.00019178,2]
[382289977,1756565467457,-711.084998,0.00019178,2]
[382289978,1756565467467,-188.593015,0.00019178,2]
[382289979,1756565467476,-711.084998,0.00019178,2]
[382289980,1756565467486,-1269.07,0.00019178,2]
[382289981,1756565467496,-480.0,0.00019178,2]
[382289982,1756565467505,-480.0,0.00019178,2]
[382289983,1756565467515,-1315.29,0.00019178,2]
[382289984,1756565467525,-711.084998,0.00019178,2]
[382289985,1756565467535,-480.0,0.00019178,2]
[382289986,1756565467544,-711.084998,0.00019178,2]
[382289987,1756565467554,-711.084995,0.00019178,2]
[382289988,1756565467569,-1884.55,0.00019178,2]
[382289989,1756565467579,-480.0,0.00019178,2]
[382289990,1756565467588,-480.0,0.00019178,2]
[382289991,1756565467598,-2132.82,0.00019178,2]
[382289992,1756565467609,-483.89252481,0.00019178,2]
[382289993,1756565467619,-151.0,0.00019178,2]
[382289994,1756565467628,-151.0,0.00019178,2]
[382289995,1756565467638,-480.0,0.00019178,2]
[382289996,1756565467650,-151.0,0.00019178,2]
[382289997,1756565467659,-463.98294819,0.00019178,2]
[382289998,1756565467669,-151.0,0.00019178,2]
[382289999,1756565467678,-480.0,0.00019178,2]
[382290000,1756565467688,-151.0,0.00019178,2]
[382290001,1756565467698,-151.0,0.00019178,2]
[382290002,1756565467707,-151.0,0.00019178,2]
[382290003,1756565467717,-151.0,0.00019178,2]
[382290004,1756565467727,-480.22,0.00019178,2]
[382290005,1756565467737,-707.64,0.00019178,2]
[382290006,1756565467747,-151.0,0.00019178,2]
[382290007,1756565467758,-2298.4,0.00019178,2]
[382290008,1756565467767,-151.0,0.00019178,2]
[382290009,1756565467777,-151.0,0.00019178,2]
[382290010,1756565467786,-151.0,0.00019178,2]
[382290011,1756565467797,-151.0,0.00019178,2]
[382290012,1756565467807,-151.0,0.00019178,2]
[382290013,1756565467817,-151.0,0.00019178,2]
[382290014,1756565467826,-480.0,0.00019178,2]
[382290015,1756565467836,-480.0,0.00019178,2]
[382290016,1756565467846,-151.0,0.00019178,2]
[382290017,1756565467855,-151.0,0.00019178,2]
[382290018,1756565467865,-151.0,0.00019178,2]
[382290019,1756565467875,-1622.52,0.00019178,2]
[382290020,1756565467885,-824.03,0.00019178,2]
[382290021,1756565467896,-1578.43,0.00019178,2]
[382290022,1756565467905,-480.0,0.00019178,2]
[382290023,1756565467915,-480.0,0.00019178,2]
[382290024,1756565467924,-480.0,0.00019178,2]
[382290025,1756565467934,-480.0,0.00019178,2]
[382290026,1756565468064,-480.0,0.00019178,2]
[382290027,1756565468093,-480.0,0.00019178,2]
[382290028,1756565468103,-480.0,0.00019178,2]
[382290029,1756565468113,-1165.964533,0.00019178,2]
[382290030,1756565468124,-1438.41,0.00019178,2]
[382290031,1756565468134,-1165.964533,0.00019178,2]
[382290032,1756565468144,-1165.964533,0.00019178,2]
[382290033,1756565468155,-869.15,0.00019178,2]
[382290034,1756565468164,-480.0,0.00019178,2]
[382290035,1756565468175,-1165.964533,0.00019178,2]
[382290036,1756565468185,-1165.964533,0.00019178,2]
[382290037,1756565468195,-1165.964533,0.00019178,2]
[382290038,1756565468205,-1165.964533,0.00019178,2]
[382290039,1756565468215,-1165.964533,0.00019178,2]
[382290040,1756565468227,-1165.964533,0.00019178,2]
[382290041,1756565468238,-5784.65,0.00019178,2]
[382290042,1756565468248,-480.0,0.00019178,2]
[382290043,1756565468258,-675.98,0.00019178,2]
[382290044,1756565468267,-1165.964533,0.00019178,2]
[382290045,1756565468277,-1165.964533,0.00019178,2]
[382290046,1756565468287,-1165.964534,0.00019178,2]
[382290047,1756565468297,-480.0,0.00019178,2]
[382290048,1756565468307,-480.0,0.00019178,2]
[382290049,1756565468317,-6692.12,0.00019178,2]
[382290050,1756565468327,-211.003193,0.00019178,2]
[382290051,1756565468338,-480.0,0.00019178,2]
[382290052,1756565468347,-538.87,0.00019178,2]
[382290053,1756565468357,-552.3,0.00019178,2]
[382290054,1756565468367,-626.32,0.00019178,2]
[382290055,1756565468376,-1511.01,0.00019178,2]
[382290056,1756565468386,-1761.84,0.00019178,2]
[382290057,1756565468395,-1749.43,0.00019178,2]
[382290058,1756565468404,-480.0,0.00019178,2]
[382290059,1756565468414,-480.0,0.00019178,2]
[382290060,1756565468424,-657.46988,0.00019178,2]
[382290061,1756565468433,-657.46988,0.00019178,2]
[382290062,1756565468442,-2078.12,0.00019178,2]
[382290063,1756565468452,-657.46988,0.00019178,2]
[382290064,1756565468462,-657.46988,0.00019178,2]
[382290065,1756565468471,-657.46988,0.00019178,2]
[382290066,1756565468481,-657.46988,0.00019178,2]
[382290067,1756565468491,-480.0,0.00019178,2]
[382290068,1756565468500,-657.46988,0.00019178,2]
[382290069,1756565468510,-708.55,0.00019178,2]
[382290070,1756565468520,-657.46988,0.00019178,2]
[382290071,1756565468529,-480.0,0.00019178,2]
[382290072,1756565468539,-657.46988,0.00019178,2]
[382290073,1756565468548,-480.0,0.00019178,2]
[382290074,1756565468558,-657.46988,0.00019178,2]
[382290075,1756565468572,-657.46988,0.00019178,2]
[382290076,1756565468582,-1761.4,0.00019178,2]
[382290077,1756565468591,-657.469887,0.00019178,2]
[382290078,1756565468602,-480.0,0.00019178,2]
[382290079,1756565468613,-2286.27,0.00019178,2]
[382290080,1756565468623,-1746.13,0.00019178,2]
[382290081,1756565468634,-480.0,0.00019178,2]
[382290082,1756565468647,-480.0,0.00019178,2]
[382290083,1756565468658,-480.0,0.00019178,2]
[382290084,1756565468668,-151.0,0.00019178,2]
[382290085,1756565468678,-416.32390012,0.00019178,2]
[382290086,1756565468688,-151.0,0.00019178,2]
[382290087,1756565468698,-151.0,0.00019178,2]
[382290088,1756565468707,-1162.3,0.00019178,2]
[382290089,1756565468717,-480.0,0.00019178,2]
[382290090,1756565468727,-151.0,0.00019178,2]
[382290091,1756565468736,-2352.55,0.00019178,2]
[382290092,1756565468747,-151.0,0.00019178,2]
[382290093,1756565468757,-1447.27,0.00019178,2]
[382290094,1756565468766,-151.0,0.00019178,2]
[382290095,1756565468776,-151.0,0.00019178,2]
[382290096,1756565468786,-151.0,0.00019178,2]
[382290097,1756565468795,-151.0,0.00019178,2]
[382290098,1756565468805,-480.0,0.00019178,2]
[382290099,1756565468815,-480.0,0.00019178,2]
[382290100,1756565468824,-480.0,0.00019178,2]
[382290101,1756565468834,-2778.08,0.00019178,2]
[382290102,1756565468843,-480.0,0.00019178,2]
[382290103,1756565468853,-484.77122899,0.00019178,2]
[382290104,1756565468862,-1564.45,0.00019178,2]
[382290105,1756565468872,-480.76753638,0.00019178,2]
[382290106,1756565468882,-480.0,0.00019178,2]
[382290107,1756565468894,-480.0,0.00019178,2]
[382290108,1756565468904,-480.0,0.00019178,2]
[382290109,1756565468914,-481.86030302,0.00019178,2]
[382290110,1756565468923,-1577.99,0.00019178,2]
[382290111,1756565468932,-480.0,0.00019178,2]
[382290112,1756565468941,-484.74855582,0.00019178,2]
[382290113,1756565468951,-6039.12,0.00019178,2]
[382290114,1756565468961,-1692.64,0.00019178,2]
[382290115,1756565468971,-508.96,0.00019178,2]
[382290116,1756565468980,-480.0,0.00019178,2]
[382290117,1756565468990,-480.0,0.00019178,2]
[382290118,1756565469000,-762.76,0.00019178,2]
[382290119,1756565469010,-480.00000001,0.00019178,2]
[382290120,1756565469020,-480.0,0.00019178,2]
[382290121,1756565469030,-825.07,0.00019178,2]
[382290122,1756565469039,-480.0,0.00019178,2]
[382290123,1756565469049,-480.0,0.00019178,2]
[382290124,1756565469059,-1179.51,0.00019178,2]
[382290125,1756565469069,-1000.0,0.00019178,2]
[382290126,1756565469079,-1000.0,0.00019178,2]
[382290127,1756565469089,-480.0,0.00019178,2]
[382290128,1756565469098,-480.0,0.00019178,2]
[382290129,1756565469109,-1000.0,0.00019178,2]
[382290130,1756565469119,-480.0,0.00019178,2]